bitfinex-derivatives/quotes_ETHF0:USTF0_20260221
["timestamp","ask_amount","ask_price","bid_price","bid_amount"]
[1771666528843,3.67211765,1974.8,1974.2,3.78906477]
[1771666533245,5.31470681,1974.5,1974.0,3.78906477]
[1771666533748,3.67211765,1974.5,1974.0,3.78906477]
[1771666535041,3.67211765,1974.4,1973.9,3.78906477]
[1771666540145,1.64258916,1974.5,1973.9,3.78906477]
[1771666540447,3.4573864,1974.6,1973.9,3.78906477]
[1771666545655,3.4573864,1974.4,1973.8,5.16472655]
[1771666546357,3.4573864,1974.4,1973.9,3.66072655]
[1771666557463,3.4573864,1974.6,1973.9,3.66072655]
[1771666560468,3.4573864,1974.8,1974.0,3.66072655]
[1771666561470,3.4573864,1974.7,1974.0,3.66072655]
[1771666569177,3.4573864,1974.7,1974.1,3.61397135]
[1771666570181,3.4573864,1974.7,1974.0,4.95381332]
[1771666570580,3.4573864,1974.7,1974.1,3.44981332]
[1771666570879,3.4573864,1974.7,1974.0,4.95381332]
[1771666571176,3.33135027,1974.6,1973.8,3.44981332]
[1771666572283,3.33135027,1974.6,1973.7,3.4535228]
[1771666581295,3.33135027,1974.5,1973.7,3.4535228]
[1771666590004,3.33135027,1974.5,1973.5,4.20466897]
[1771666590005,3.33135027,1974.0,1973.4,9.72476545]
[1771666590207,3.33135027,1974.0,1973.4,3.44981332]
[1771666591002,3.33135027,1974.0,1973.4,3.45580014]
[1771666592407,3.33135027,1974.0,1973.4,0.00598682]
[1771666593504,3.33135027,1974.0,1973.4,3.45580014]
[1771666596200,3.33135027,1974.0,1973.4,0.00598682]
[1771666596406,3.33135027,1973.9,1973.2,3.44981332]
[1771666597303,3.33699949,1973.9,1973.2,3.4547409]
[1771666599207,3.33699949,1973.9,1973.2,0.00492758]
[1771666600008,4.23670756,1973.8,1973.2,0.00492758]
[1771666600213,3.30690715,1973.7,1973.2,0.00492758]
[1771666600715,3.30690715,1973.7,1973.2,3.37118567]
[1771666601214,3.30690715,1973.7,1973.2,0.00492758]
[1771666603412,3.30690715,1973.7,1972.9,3.36625809]
[1771666604614,3.30690715,1973.7,1972.9,3.37152608]
[1771666605816,3.30690715,1973.6,1972.9,3.37152608]
[1771666607914,3.30690715,1973.6,1972.9,0.00526799]
[1771666608119,3.30690715,1973.6,1972.9,3.37152608]
[1771666627030,3.30690715,1973.1,1972.9,0.00526799]
[1771666627329,3.30690715,1973.1,1972.7,3.36625809]
[1771666627528,1.64438319,1973.4,1972.7,3.36625809]
[1771666627730,3.51346232,1973.3,1972.7,3.36625809]
[1771666628226,3.51346232,1973.3,1972.7,3.37035693]
[1771666629034,3.32502754,1973.5,1972.9,3.32100258]
[1771666629534,3.32502754,1973.4,1972.9,3.32100258]
[1771666630932,1.64438319,1973.0,1972.7,3.32510142]
[1771666631128,4.23670756,1973.5,1972.7,3.08531118]
[1771666631321,7.5617351,1973.5,1972.7,3.08531118]
[1771666631531,3.32502754,1973.4,1972.7,3.08531118]
[1771666631828,7.5617351,1973.5,1972.8,1.64438319]
[1771666632032,3.32502754,1973.5,1972.9,3.32100258]
[1771666633631,3.32502754,1972.9,1972.4,3.32100258]
[1771666633829,3.32502754,1972.9,1971.5,3.32100258]
[1771666633830,3.32502754,1972.5,1971.5,3.32100258]
[1771666634023,3.32502754,1972.1,1971.3,1.64438319]
[1771666634224,3.32502754,1972.5,1971.8,3.32100258]
[1771666634629,5.84741435,1972.4,1971.8,3.32625726]
[1771666634828,3.32977229,1972.5,1971.8,3.32625726]
[1771666635024,0.00474475,1972.5,1972.1,3.32100258]
[1771666639426,3.32502754,1972.7,1972.1,3.32100258]
[1771666639932,3.32502754,1972.9,1972.1,3.32100258]
[1771666640435,3.32945637,1972.9,1972.1,3.32100258]
[1771666645338,3.32945637,1972.9,1971.8,0.00525468]
[1771666645339,0.00442883,1972.9,1972.5,3.32100258]
[1771666645531,1.64438319,1973.1,1972.5,3.32100258]
[1771666645740,9.18473121,1973.0,1972.5,3.32100258]
[1771666645942,3.32502754,1973.0,1972.5,3.32100258]
[1771666646440,3.32970244,1973.0,1972.5,3.32100258]
[1771666647436,3.32502754,1973.4,1972.6,3.32100258]
[1771666648340,3.32997861,1973.4,1972.6,3.32100258]
[1771666652650,1.64438319,1973.3,1972.6,3.32100258]
[1771666657150,4.96941073,1973.3,1972.6,3.32100258]
[1771666659354,3.32502754,1973.3,1972.6,3.32100258]
[1771666663161,3.96177901,1973.2,1972.6,3.32100258]
[1771666666057,3.96177901,1972.6,1971.6,7.89239404]
[1771666666359,3.96177901,1971.6,1971.2,3.84103977]
[1771666666748,5.6061622,1972.1,1971.4,3.84103977]
[1771666666954,3.96177901,1971.9,1971.4,3.84103977]
[1771666667254,3.96832996,1971.9,1971.4,3.8465181]
[1771666669560,3.96832996,1971.9,1971.5,3.84103977]
[1771666669954,0.00655095,1971.9,1971.5,3.84103977]
[1771666670159,5.6061622,1972.1,1971.7,3.84103977]
[1771666670360,3.96177901,1972.0,1971.7,3.84103977]
[1771666670560,3.96177901,1972.0,1971.5,3.84103977]
[1771666670760,3.96177901,1972.0,1971.6,3.84103977]
[1771666671161,3.96685214,1972.0,1971.6,10.27356165]
[1771666671664,3.96685214,1972.0,1971.6,3.84103977]
[1771666674564,0.00507313,1972.0,1971.6,3.84103977]
[1771666674764,3.96177901,1972.4,1971.7,3.84103977]
[1771666674958,3.96177901,1972.2,1971.5,3.84103977]
[1771666675355,3.96177901,1972.2,1971.6,3.84103977]
[1771666675863,3.96635404,1972.2,1971.6,3.84103977]
[1771666680769,3.96635404,1972.2,1971.6,10.27356165]
[1771666680964,3.96635404,1972.2,1971.6,3.84103977]
[1771666681268,3.96635404,1972.2,1971.6,10.27356165]
[1771666681867,3.96635404,1972.2,1971.7,3.84103977]
[1771666684367,0.00457503,1972.2,1971.9,3.84103977]
[1771666684566,3.96177901,1972.5,1971.9,3.84103977]
[1771666684773,3.96177901,1972.4,1971.5,3.84103977]
[1771666684973,3.96177901,1972.4,1971.6,3.84103977]
[1771666685367,3.96177901,1972.4,1971.7,10.27356165]
[1771666685573,3.96698409,1972.4,1971.7,3.84103977]
[1771666688674,3.96698409,1972.4,1971.7,10.27356165]
[1771666689573,4.34617824,1972.3,1971.8,10.66733558]
[1771666689774,4.34617824,1972.3,1971.9,4.2348137]
[1771666689967,4.34617824,1972.3,1971.5,4.2348137]
[1771666690166,4.34617824,1972.3,1971.7,10.66733558]
[1771666690472,4.34617824,1972.3,1971.8,4.2348137]
[1771666690776,4.34617824,1972.3,1971.9,4.2348137]
[1771666691174,4.34617824,1972.3,1972.0,6.43252188]
[1771666691570,4.34617824,1972.3,1971.9,4.2348137]
[1771666692281,4.34617824,1972.3,1972.0,6.43252188]
[1771666692476,4.34617824,1972.3,1971.9,4.2348137]
[1771666692676,4.34617824,1972.3,1972.0,6.43252188]
[1771666693075,4.34617824,1972.3,1971.9,4.2348137]
[1771666693476,4.35138332,1972.4,1971.9,4.2348137]
[1771666693782,4.35138332,1972.4,1972.2,6.43252188]
[1771666693972,4.35138332,1972.4,1972.1,4.2348137]
[1771666694280,4.35138332,1972.4,1972.3,6.43252188]
[1771666694478,4.35138332,1972.4,1972.1,4.2348137]
[1771666694479,4.0557652,1972.4,1972.1,4.2348137]
[1771666694678,10.25879525,1972.4,1972.1,4.2348137]
[1771666694879,6.20303005,1972.3,1972.1,4.2348137]
[1771666695478,6.20915981,1972.3,1972.1,4.2348137]
[1771666695681,4.23670756,1972.5,1972.1,4.2348137]
[1771666695983,4.34617824,1972.6,1972.1,4.2348137]
[1771666696183,4.34617824,1972.5,1972.1,4.2348137]
[1771666696680,4.35091072,1972.5,1972.1,4.2348137]
[1771666696884,4.34617824,1972.7,1972.1,4.2348137]
[1771666697078,0.44883659,1972.6,1972.1,4.2348137]
[1771666697278,4.34617824,1972.7,1972.1,4.2348137]
[1771666697983,4.35170867,1972.7,1972.1,4.2348137]
[1771666700486,0.00553043,1972.7,1972.1,4.2348137]
[1771666700785,4.34617824,1972.9,1972.1,4.2348137]
[1771666701886,4.35034461,1972.9,1972.1,4.2348137]
[1771666707593,5.98960581,1972.8,1972.1,4.2348137]
[1771666707791,5.98960581,1972.7,1972.1,4.2348137]
[1771666707994,4.34617824,1972.8,1972.1,4.2348137]
[1771666708192,5.98960913,1972.7,1972.1,4.2348137]
[1771666708392,4.34617824,1972.8,1972.1,4.2348137]
[1771666708691,10.33568796,1972.7,1972.1,4.2348137]
[1771666708887,4.34617824,1972.7,1972.1,4.2348137]
[1771666721907,4.62004335,1972.8,1972.1,4.2348137]
[1771666722204,5.99743689,1972.7,1972.1,4.2348137]
[1771666722403,4.62004335,1972.8,1972.1,4.2348137]
[1771666722604,5.99937012,1972.7,1972.1,4.2348137]
[1771666722805,4.62004335,1972.8,1972.1,4.2348137]
[1771666723006,5.99936981,1972.7,1972.1,4.2348137]
[1771666723201,4.62004335,1972.8,1972.1,4.2348137]
[1771666723407,6.00172274,1972.7,1972.1,4.2348137]
[1771666723607,4.62004335,1972.8,1972.1,4.2348137]
[1771666723814,6.00172274,1972.7,1972.1,4.2348137]
[1771666724111,4.62004335,1972.8,1972.1,4.2348137]
[1771666724305,6.00172243,1972.7,1972.1,4.2348137]
[1771666724506,4.62004335,1972.8,1972.1,4.2348137]
[1771666724712,10.6233905,1972.7,1972.1,4.2348137]
[1771666724913,4.62004335,1972.7,1972.1,4.2348137]
[1771666728213,4.62420972,1972.9,1972.1,4.2348137]
[1771666728412,6.0068922,1972.8,1972.1,4.2348137]
[1771666728620,4.62420972,1972.9,1972.1,4.2348137]
[1771666728912,6.0067948,1972.8,1972.1,4.2348137]
[1771666729114,4.62420972,1972.9,1972.1,4.2348137]
[1771666731719,0.00416637,1972.9,1972.1,4.2348137]
[1771666733925,0.00416637,1972.9,1972.3,4.70297815]
[1771666741931,6.26505417,1973.1,1972.3,4.70297815]
[1771666742133,5.97206858,1973.0,1972.3,4.70297815]
[1771666742330,6.26505417,1973.1,1972.3,4.70297815]
[1771666742534,6.26505417,1973.1,1972.2,1.64501082]
[1771666742535,4.62004335,1973.1,1972.5,4.70297815]
[1771666742731,4.62643976,1973.1,1972.5,4.70297815]
[1771666744031,0.00639641,1973.1,1972.5,4.70297815]
[1771666751436,4.76221879,1973.4,1972.7,4.58285799]
[1771666752441,4.76728452,1973.4,1972.7,4.58285799]
[1771666754040,4.76221879,1974.1,1973.4,3.74517294]
[1771666754243,4.76221879,1974.0,1973.4,3.74517294]
[1771666754940,4.76221879,1974.0,1973.4,3.75151195]
[1771666754941,4.76635545,1974.0,1973.4,3.75151195]
[1771666755340,4.76221879,1974.2,1973.4,3.75151195]
[1771666756539,4.76628818,1974.2,1973.6,3.91623847]
[1771666763550,4.76628818,1974.2,1973.8,3.84590924]
[1771666770053,4.76628818,1974.2,1973.6,3.78504376]
[1771666773651,4.76628818,1974.2,1973.8,3.84865369]
[1771666775959,4.76628818,1974.2,1973.7,5.47293151]
[1771666776156,4.76628818,1974.2,1973.7,3.82792069]
[1771666777860,4.76628818,1974.2,1973.5,5.51065851]
[1771666778361,4.76628818,1974.2,1973.6,3.86563457]
[1771666778963,4.52514631,1974.6,1974.1,5.50386105]
[1771666779263,4.52514631,1974.6,1973.8,5.58875323]
[1771666779457,4.52514631,1974.6,1973.9,3.94374241]
[1771666779962,4.52892107,1974.6,1974.0,1.64501082]
[1771666780159,4.52892107,1974.6,1974.0,5.59626566]
[1771666780365,4.52892107,1974.6,1974.2,5.59626566]
[1771666782360,4.52892107,1974.6,1974.1,4.11122814]
[1771666788467,4.21949705,1975.2,1974.4,5.67689916]
[1771666788468,4.52514631,1974.8,1974.4,5.67689916]
[1771666788771,10.0414024,1975.5,1974.5,4.03188834]
[1771666788772,4.52514631,1975.0,1974.5,4.03188834]
[1771666789568,4.52999298,1975.0,1974.5,4.03188834]
[1771666790565,4.52999298,1975.0,1974.7,4.04155565]
[1771666790970,4.52514631,1975.1,1974.7,4.04155565]
[1771666791167,4.52514631,1975.1,1974.1,6.57118206]
[1771666791371,4.52514631,1974.9,1974.3,4.27023587]
[1771666791972,4.5297622,1974.9,1974.3,4.27023587]
[1771666792172,4.5297622,1974.9,1974.3,5.91524669]
[1771666792970,4.5297622,1974.9,1974.4,4.25638782]
[1771666793777,4.5297622,1974.9,1974.2,4.2129671]
[1771666804979,7.63089486,1975.3,1974.6,4.17617168]
[1771666805185,4.52514631,1975.2,1974.6,4.17617168]
[1771666805985,4.53024948,1975.2,1974.6,4.17617168]
[1771666806582,0.00510317,1975.2,1974.7,4.19350934]
[1771666807487,4.48228229,1975.2,1974.7,4.19350934]
[1771666811892,0.00510317,1975.2,1974.7,4.19350934]
[1771666812090,4.55920987,1975.3,1974.7,4.19350934]
[1771666813095,4.56486796,1975.3,1974.5,4.00287493]
[1771666818191,4.56486796,1975.3,1974.8,3.89689363]
[1771666818396,4.56486796,1975.3,1974.8,3.9024928]
[1771666819096,0.00565809,1975.3,1974.8,3.9024928]
[1771666819792,4.55920987,1975.4,1974.8,3.9024928]
[1771666820797,4.56549367,1975.4,1974.8,3.9024928]
[1771666829000,4.56549367,1975.4,1974.8,0.00559917]
[1771666831103,4.55920987,1975.2,1974.4,3.77897653]
[1771666831703,4.55920987,1975.2,1974.2,3.73651749]
[1771666831907,4.55920987,1975.1,1974.2,3.73651749]
[1771666832205,4.55920987,1975.1,1974.2,3.74227939]
[1771666832400,4.55920987,1975.0,1974.2,3.74227939]
[1771666833005,4.55920987,1975.0,1974.2,0.0057619]
[1771666834204,6.20107536,1975.0,1974.2,0.0057619]
[1771666834406,6.20107536,1975.0,1974.0,0.065]
[1771666834407,4.55920987,1974.9,1974.0,0.065]
[1771666834809,4.55920987,1974.9,1974.0,3.86736486]
[1771666835309,4.55920987,1974.9,1974.0,3.87335462]
[1771666835910,4.55920987,1974.9,1974.0,0.07098976]
[1771666839814,4.39700832,1974.7,1974.0,0.07098976]
[1771666840617,4.39700832,1975.3,1974.6,4.28241668]
[1771666840819,4.39700832,1975.3,1974.7,4.34741668]
[1771666848227,4.39700832,1975.3,1974.7,0.065]
[1771666848425,4.39700832,1975.3,1974.1,4.28241668]
[1771666853728,3.10574855,1975.2,1974.1,4.28241668]
[1771666853931,3.10574855,1975.2,1974.0,7.96569731]
[1771666853932,4.39700832,1975.1,1974.4,1.64170739]
[1771666854138,4.39700832,1975.1,1974.4,5.92412407]
[1771666859235,4.39700832,1975.1,1974.3,4.28241668]
[1771666859542,4.39700832,1975.0,1974.3,4.28241668]
[1771666859834,4.39700832,1974.8,1974.3,4.28241668]
[1771666860735,4.39700832,1974.8,1974.2,5.92412407]
[1771666861437,4.39700832,1974.8,1974.2,4.28241668]
[1771666862636,4.39700832,1974.8,1974.3,4.28241668]
[1771666865641,4.39700832,1974.7,1974.3,4.28241668]
[1771666868947,7.53031008,1974.8,1974.4,1.64170739]
[1771666869145,7.53031008,1974.8,1974.5,4.21882251]
[1771666869342,3.10574855,1974.8,1974.5,4.21882251]
[1771666871549,4.42456153,1974.9,1974.5,4.21882251]
[1771666873846,4.42456153,1974.9,1974.4,1.64170739]
[1771666874553,4.42456153,1974.9,1974.4,5.86043567]
[1771666879443,4.42456153,1974.9,1974.1,4.22109344]
[1771666879646,4.42456153,1974.9,1974.2,4.22109344]
[1771666879848,4.42456153,1974.9,1974.1,5.85558141]
[1771666880551,4.42456153,1974.9,1974.2,4.21359473]
[1771666881146,4.42456153,1974.7,1974.2,4.21359473]
[1771666882748,4.42456153,1974.7,1974.1,1.64170739]
[1771666882749,4.42456153,1974.7,1974.1,5.73730152]
[1771666892357,4.42456153,1974.6,1974.2,4.04590884]
[1771666893158,4.42456153,1974.6,1974.1,5.67991878]
[1771666893357,4.42456153,1974.6,1974.2,4.03821139]
[1771666898560,4.42456153,1974.6,1974.1,5.61923835]
[1771666903166,4.42456153,1974.6,1974.2,3.96549041]
[1771666903365,4.42456153,1974.6,1974.1,5.6071978]
[1771666906669,4.42456153,1974.6,1974.1,1.64170739]
[1771666906968,4.42456153,1974.6,1974.1,5.56098443]
[1771666908164,4.42456153,1974.6,1973.8,6.31784206]
[1771666908369,4.29027792,1974.5,1973.7,5.79031449]
[1771666908571,4.29027792,1974.5,1973.8,1.64170739]
[1771666908771,4.29027792,1974.5,1973.9,4.1486071]
[1771666909372,4.29027792,1974.5,1973.9,4.15422974]
[1771666918068,4.24144168,1974.8,1973.9,0.00562264]
[1771666918069,4.29027792,1974.3,1973.9,0.00562264]
[1771666918266,4.29027792,1974.3,1973.9,4.15422974]
[1771666918472,4.29027792,1974.3,1973.5,4.1486071]
[1771666919463,4.29027792,1974.3,1973.5,4.15313117]
[1771666921273,4.29027792,1974.3,1973.7,4.1486071]
[1771666924172,4.29027792,1974.7,1973.7,4.1486071]
[1771666927879,4.32511436,1974.5,1973.7,4.1486071]
[1771666928981,4.32511436,1974.5,1973.8,4.14925187]
[1771666931187,4.398603,1974.5,1973.8,5.79178564]
[1771666931390,4.398603,1974.5,1973.9,4.02073509]
[1771666933686,3.10574855,1974.6,1973.9,4.02073509]
[1771666934190,7.50435155,1974.6,1973.9,4.02073509]
[1771666935189,4.398603,1974.5,1973.9,4.02073509]
[1771666937592,3.10574855,1974.6,1973.9,4.02073509]
[1771666937788,7.50435155,1974.6,1973.9,4.02073509]
[1771666938390,4.398603,1974.5,1973.9,4.02073509]
[1771666976024,4.398603,1974.5,1973.9,5.66323285]
[1771666977431,4.398603,1974.5,1974.0,3.91404967]
[1771666982022,4.398603,1974.5,1973.9,5.55654743]
[1771666982430,4.398603,1974.5,1973.8,3.91404967]
[1771666982730,4.06657211,1974.1,1973.5,3.91857374]
[1771666984627,4.06657211,1974.1,1973.5,0.00452407]
[1771666986528,4.06657211,1973.9,1973.5,0.00452407]
[1771666986732,4.07181457,1973.9,1973.3,3.91404967]
[1771666987433,4.07181457,1973.9,1973.2,4.23892722]
[1771666987634,4.07181457,1973.9,1973.2,4.24361558]
[1771666988532,4.07181457,1973.9,1973.3,5.88142498]
[1771666988733,4.07181457,1973.9,1973.4,4.23892722]
[1771666990235,4.21614087,1973.8,1973.3,5.62470435]
[1771666994639,4.21614087,1973.8,1973.2,0.00468836]
[1771666995136,4.21614087,1973.8,1973.2,3.98689495]
[1771666999242,4.21614087,1973.7,1973.2,3.98689495]
[1771667000240,4.21614087,1973.5,1972.9,3.98220659]
[1771667001141,4.21614087,1973.5,1972.9,3.98840787]
[1771667002444,4.21614087,1973.5,1973.0,5.62470435]
[1771667004539,7.32188942,1973.7,1973.3,3.98220659]
[1771667004740,7.32188942,1973.7,1973.4,5.62470435]
[1771667004940,4.21614087,1973.6,1973.4,1.64249776]
[1771667008741,4.21614087,1973.6,1973.3,3.98220659]
[1771667024165,4.21614087,1973.6,1973.2,5.50889555]
[1771667028962,4.21614087,1973.6,1973.3,3.86639779]
[1771667032973,4.21614087,1973.6,1973.2,1.64249776]
[1771667032974,4.21614087,1973.6,1973.2,5.50889555]
[1771667035877,4.21614087,1973.6,1973.2,3.86639779]
[1771667037778,4.21614087,1973.6,1973.0,3.86639779]
[1771667040177,4.21614087,1973.6,1972.9,10.19044113]
[1771667040380,4.21614087,1973.6,1973.0,3.86639779]
[1771667046284,4.21614087,1973.6,1972.9,0.00620128]
[1771667050185,4.21614087,1973.6,1972.9,3.93345913]
[1771667051989,4.21614087,1973.6,1973.1,3.92725785]
[1771667052287,6.94033335,1973.7,1973.1,3.92725785]
[1771667054291,3.8345848,1973.6,1973.1,3.92725785]
[1771667059088,3.8345848,1973.6,1972.9,3.93345913]
[1771667060995,3.8345848,1973.6,1972.9,0.00620128]
[1771667061395,3.8345848,1973.4,1972.9,3.93345913]
[1771667064399,3.8345848,1973.4,1972.9,0.00620128]
[1771667069803,3.8345848,1973.4,1972.9,3.93345913]
[1771667080209,3.8345848,1973.4,1972.9,0.00620128]
[1771667080510,3.8345848,1973.4,1972.9,4.07492185]
[1771667080810,3.8345848,1973.4,1972.9,0.00620128]
[1771667082714,4.15682941,1973.2,1972.6,4.06872057]
[1771667083609,4.15682941,1973.2,1972.6,4.07500628]
[1771667084914,4.15682941,1973.2,1972.4,4.06872057]
[1771667086015,4.15682941,1973.2,1972.4,4.07336433]
[1771667093816,4.15682941,1973.2,1972.6,4.06872057]
[1771667094020,7.26257796,1973.3,1972.6,4.06872057]
[1771667095518,4.15682941,1973.2,1972.6,4.06872057]
[1771667098016,4.15682941,1973.2,1972.8,4.06872057]
[1771667098221,7.26257796,1973.3,1973.0,4.06872057]
[1771667101316,4.15682941,1973.2,1973.0,4.06872057]
[1771667101518,4.15682941,1973.2,1972.8,4.06872057]
[1771667101719,4.15682941,1973.2,1972.6,4.06872057]
[1771667104220,7.26257796,1973.1,1972.6,4.06872057]
[1771667104422,4.15682941,1973.3,1972.8,4.06872057]
[1771667106027,4.15682941,1973.3,1972.7,1.64454674]
[1771667106228,4.15682941,1973.3,1972.6,4.06872057]
[1771667108032,4.15682941,1973.3,1972.8,3.82424456]
[1771667108925,3.98361588,1973.2,1972.8,3.82424456]
[1771667109125,7.31202844,1973.3,1972.8,3.82424456]
[1771667110023,3.10574855,1973.3,1973.0,4.15101941]
[1771667110224,4.20627989,1973.4,1973.0,4.15101941]
[1771667115332,4.20627989,1973.4,1972.8,4.15101941]
[1771667124039,7.31202844,1973.5,1973.0,4.15101941]
[1771667128450,3.10574855,1973.5,1973.0,4.15101941]
[1771667129046,7.31202844,1973.5,1973.0,4.15101941]
[1771667131850,4.20627989,1973.4,1973.0,4.15101941]
[1771667132444,7.31202844,1973.5,1973.0,4.15101941]
[1771667133651,4.20627989,1973.5,1973.0,4.15101941]
[1771667155171,4.20627989,1973.5,1972.9,1.64454674]
[1771667155366,4.20627989,1973.5,1972.9,5.48138318]
[1771667156570,4.20627989,1973.5,1972.9,3.83683644]
[1771667168081,3.79146305,1973.4,1972.9,3.83683644]
[1771667171484,3.79146305,1973.4,1972.7,4.08086099]
[1771667174181,4.09684152,1973.3,1972.7,4.08086099]
[1771667182988,4.09684152,1973.2,1972.7,4.08086099]
[1771667196409,3.10574855,1973.3,1972.7,4.08086099]
[1771667196806,4.09684152,1973.4,1972.7,4.08086099]
[1771667206616,7.20259007,1973.4,1972.7,4.08086099]
[1771667207922,7.20259007,1973.4,1972.8,4.04662152]
[1771667214023,3.80297238,1973.3,1972.8,4.04662152]
[1771667219932,3.80297238,1973.3,1972.9,4.04662152]
[1771667222830,6.90872093,1973.4,1972.9,4.04662152]
[1771667225133,3.80297238,1973.3,1972.9,4.04662152]
[1771667238733,3.10574855,1973.4,1973.1,4.09899221]
[1771667238938,3.83514378,1973.6,1973.3,4.09899221]
[1771667239241,3.83514378,1973.6,1973.2,4.09899221]
[1771667240534,3.84038624,1973.9,1973.5,4.09899221]
[1771667240836,3.83514378,1974.0,1973.5,4.09899221]
[1771667241638,3.83960254,1974.0,1973.5,4.09899221]
[1771667243037,2.73935621,1974.0,1973.5,4.09899221]
[1771667243942,2.74430948,1974.0,1973.5,4.09899221]
[1771667244139,3.84009705,1974.0,1973.5,4.09899221]
[1771667249244,0.00495327,1974.0,1973.5,4.09899221]
[1771667249745,3.84009705,1974.0,1973.5,4.09899221]
[1771667260549,3.89012546,1973.9,1973.3,3.97497406]
[1771667260745,3.89012546,1973.7,1973.1,3.97497406]
[1771667261444,1.64921382,1974.0,1973.1,3.97497406]
[1771667261445,3.89012546,1973.5,1973.1,3.97497406]
[1771667262251,3.89012546,1973.5,1972.9,3.97497406]
[1771667290488,3.89012546,1973.5,1973.0,4.01926433]
[1771667297891,3.89012546,1973.5,1972.9,10.33710639]
[1771667298094,3.89012546,1973.5,1972.9,4.01926433]
[1771667299695,3.89012546,1973.5,1972.8,4.01926433]
[1771667299895,4.11941634,1973.3,1972.6,4.01926433]
[1771667302295,4.11941634,1973.3,1972.5,4.01926433]
[1771667316515,4.11941634,1973.2,1972.5,4.01926433]
[1771667327826,4.11941634,1973.2,1972.4,0.00464376]
[1771667328030,4.11941634,1973.2,1972.4,3.68490557]
[1771667329631,4.03835906,1973.1,1972.4,3.68490557]
[1771667329830,4.03835906,1973.0,1972.4,3.68490557]
[1771667333940,2.569,1973.1,1972.4,3.68490557]
[1771667334136,4.03835906,1973.2,1972.4,3.68490557]
[1771667334137,6.60735906,1973.2,1972.4,3.68490557]
[1771667334938,6.60735906,1973.2,1972.5,3.68026181]
[1771667335243,4.03835906,1973.1,1972.5,3.68026181]
[1771667336035,6.60735906,1973.2,1972.5,3.68026181]
[1771667341346,4.03835906,1973.1,1972.5,3.68026181]
[1771667391569,3.73402071,1973.0,1972.5,3.68026181]
[1771667392268,3.73402071,1973.0,1972.4,3.96416848]
[1771667393867,3.73402071,1973.0,1972.5,3.95952472]
[1771667397972,3.73402071,1973.0,1972.4,0.00464376]
[1771667398371,3.73402071,1973.0,1972.4,3.96416848]
[1771667402677,3.73402071,1972.9,1972.4,3.96416848]
[1771667403078,3.73402071,1972.9,1972.3,3.95952472]
[1771667404069,3.73402071,1972.9,1972.3,3.96578698]
[1771667409278,3.73402071,1972.9,1972.2,3.85990208]
[1771667409781,2.569,1972.8,1972.2,3.85990208]
[1771667410080,3.93726389,1972.7,1972.0,3.85990208]
[1771667410474,3.93726389,1972.7,1972.0,3.86453259]
[1771667414283,6.50626389,1972.8,1972.0,3.86453259]
[1771667414678,3.93726389,1972.7,1972.0,3.86453259]
[1771667439101,3.93726389,1972.7,1972.1,3.66811208]
[1771667454517,3.62970349,1972.8,1972.1,3.66811208]
[1771667454718,3.62970349,1973.0,1972.1,3.66811208]
[1771667454917,3.62970349,1973.0,1972.2,3.66811208]
[1771667464624,3.62970349,1972.9,1972.2,3.66811208]
[1771667465220,3.62970349,1972.8,1972.2,3.66811208]
[1771667470631,3.91118118,1972.7,1972.2,3.66811208]
[1771667477141,3.91118118,1972.7,1972.1,3.57493975]
[1771667496751,3.91118118,1972.6,1972.1,3.57493975]
[1771667496951,3.91515659,1972.6,1972.1,3.57493975]
[1771667506155,3.91515659,1972.6,1972.0,3.56045989]
[1771667510856,3.68518307,1972.5,1972.0,3.56045989]
[1771667514661,3.68518307,1972.4,1971.9,3.55582938]
[1771667515862,3.68518307,1972.4,1971.9,3.55989662]
[1771667516667,3.68518307,1972.4,1971.9,1e-08]
[1771667516862,3.68518307,1972.4,1971.9,3.55582939]
[1771667520471,7.94105199,1972.6,1971.9,3.55582939]
[1771667520872,3.68518307,1972.5,1971.9,3.55582939]
[1771667521073,6.25418307,1972.5,1971.9,3.55582939]
[1771667522672,3.68518307,1972.4,1971.9,3.55582939]
[1771667524775,1.60822807,1972.5,1972.3,3.55582938]
[1771667526867,0.00397541,1972.6,1972.3,3.55582938]
[1771667551296,0.64822807,1972.7,1972.3,3.55582938]
[1771667552396,0.65227031,1972.7,1972.3,3.55582938]
[1771667561096,3.54117352,1972.7,1972.3,3.55582938]
[1771667571104,3.54117352,1972.7,1971.9,2.95916056]
[1771667581112,2.88890321,1972.6,1971.9,2.95916056]
[1771667584717,2.88890321,1972.5,1971.9,2.95916056]
[1771667603332,1.64622556,1972.4,1971.9,2.95916056]
[1771667603532,2.67125721,1972.3,1971.9,1e-08]
[1771667603735,2.67125721,1972.3,1971.6,2.58524248]
[1771667604734,2.67125721,1972.3,1971.6,2.59029766]
[1771667623046,2.67125721,1972.3,1971.7,1.64622556]
[1771667623247,2.67125721,1972.3,1971.8,2.12099018]
[1771667625846,2.67125721,1972.3,1971.6,0.00505518]
[1771667626053,2.2359147,1972.0,1971.4,0.95804536]
[1771667626954,2.2359147,1972.0,1971.4,0.96274973]
[1771667628655,2.2359147,1972.0,1971.4,0.00470437]
[1771667628854,2.2359147,1972.0,1971.4,1.45475828]
[1771667636562,2.2359147,1972.0,1971.5,1.29151908]
[1771667638258,4.25727853,1972.2,1971.5,1.29151908]
[1771667638657,2.2359147,1972.1,1971.5,1.29151908]
[1771667639961,2.88414277,1972.1,1971.5,1.29151908]
[1771667640156,2.2359147,1972.0,1971.5,1.29151908]
[1771667642664,2.88414277,1972.1,1971.7,1.1717374]
[1771667645961,2.2359147,1972.1,1971.7,1.1717374]
[1771667647768,2.2359147,1972.1,1971.5,0.92662501]
[1771667660477,2.2359147,1972.1,1971.4,0.75419199]
[1771667664578,2.2359147,1972.1,1971.4,0.00470437]
[1771667664780,2.2359147,1972.1,1971.4,0.69717497]
[1771667665983,1.9319077,1972.0,1971.4,0.69717497]
[1771667675186,1.9319077,1972.0,1971.1,6.88977487]
[1771667675383,1.9319077,1972.0,1971.1,0.57193281]
[1771667675384,1.9319077,1971.7,1971.1,0.57193281]
[1771667676588,1.9319077,1971.7,1971.1,0.57744553]
[1771667677385,1.9319077,1971.7,1971.1,0.55327692]
[1771667678084,1.9319077,1971.7,1971.1,0.00551272]
[1771667678591,1.9319077,1971.7,1971.1,0.50841485]
[1771667679691,1.9319077,1971.7,1971.1,0.00551272]
[1771667684203,1.74397037,1971.5,1970.5,0.46215866]
[1771667685298,1.74397037,1971.5,1970.5,0.46637351]
[1771667686191,1.74397037,1971.5,1970.8,0.4155213]
[1771667693101,1.74397037,1971.5,1970.6,0.37149875]
[1771667701104,1.74397037,1971.5,1970.5,0.31047514]
[1771667701303,5.99184612,1971.5,1970.5,0.00421485]
[1771667701609,1.74397037,1971.3,1970.5,0.00421485]
[1771667701809,1.74397037,1971.2,1970.5,0.00421485]
[1771667711114,1.62199736,1971.1,1970.5,0.00421485]
[1771667720522,1.62199736,1971.1,1970.5,1.84663457]
[1771667726626,1.62199736,1971.1,1970.6,0.16503478]
[1771667727528,1.60415964,1971.2,1970.7,1.64828404]
[1771667727729,1.60415964,1971.2,1970.7,0.16052521]
[1771667728125,1.60415964,1971.2,1970.5,8.01149655]
[1771667728331,1.60415964,1971.2,1970.6,0.15518004]
[1771667731530,1.60415964,1971.2,1970.7,1.64828404]